bitfinex-derivatives/quotes_BNBF0:USTF0_20241231
["timestamp","ask_amount","ask_price","bid_price","bid_amount"]
[1735673789664,0.26164444,703.28,702.1,0.2848597]
[1735673789865,1.48540737,703.55,702.1,0.2848597]
[1735673790067,0.26164488,703.54,702.1,0.2848597]
[1735673790364,0.26164931,703.53,702.1,0.2848597]
[1735673790661,0.26164931,703.52,702.1,0.2848597]
[1735673790867,0.26164931,703.51,702.1,0.2848597]
[1735673791066,0.26164275,703.5,702.1,0.2848597]
[1735673791268,0.26164275,703.49,702.1,0.2848597]
[1735673791466,0.26164275,703.48,702.1,0.2848597]
[1735673791668,1.48540737,703.55,702.1,0.2848597]
[1735673791669,0.26164275,703.47,702.1,0.2848597]
[1735673791869,0.26164275,703.46,702.1,0.2848597]
[1735673792065,0.26164275,703.45,702.1,0.2848597]
[1735673792267,0.26164275,703.44,702.1,0.2848597]
[1735673792466,0.26164275,703.43,702.1,0.2848597]
[1735673792668,1.48540737,703.55,702.1,0.2848597]
[1735673793068,0.26164673,703.54,702.1,0.2848597]
[1735673795471,1.48540737,703.55,702.1,0.2848597]
[1735673795770,0.26164678,703.54,702.1,0.2848597]
[1735673798164,1.48540737,703.55,702.1,0.2848597]
[1735673798365,0.26164752,703.54,702.1,0.2848597]
[1735673798971,0.26164667,703.53,702.1,0.2848597]
[1735673799274,0.26165388,703.52,702.1,0.2848597]
[1735673799572,1.48540737,703.55,702.1,0.2848597]
[1735673799765,0.26164769,703.54,702.1,0.2848597]
[1735673800372,1.48540737,703.55,702.1,0.2848597]
[1735673803468,0.26171746,703.54,702.1,0.2848597]
[1735673804369,0.26174974,703.53,702.1,0.2848597]
[1735673804565,1.06274161,703.68,702.1,0.2848597]
[1735673804566,0.26174974,703.52,702.1,0.2848597]
[1735673804766,0.26174974,703.51,702.1,0.2848597]
[1735673804971,0.26174974,703.5,702.1,0.2848597]
[1735673805172,1.06274161,703.47,702.1,0.2848597]
[1735673805371,0.26174974,703.46,702.1,0.2848597]
[1735673806168,0.26173943,703.45,702.1,0.2848597]
[1735673806366,0.26173943,703.44,702.1,0.2848597]
[1735673806570,0.26173943,703.43,702.1,0.2848597]
[1735673806772,0.26173943,703.42,702.1,0.2848597]
[1735673806972,0.26173943,703.41,702.1,0.2848597]
[1735673807168,0.26173943,703.4,702.1,0.2848597]
[1735673807469,0.26173943,703.39,702.1,0.2848597]
[1735673807668,0.26173943,703.38,702.1,0.2848597]
[1735673807871,0.26173943,703.37,702.1,0.2848597]
[1735673808077,0.26173943,703.36,702.1,0.2848597]
[1735673808272,0.26173943,703.35,702.1,0.2848597]
[1735673808475,0.26173943,703.34,702.1,0.2848597]
[1735673814178,0.2617676,703.33,702.1,0.2848597]
[1735673814472,0.2617676,703.32,702.1,0.2848597]
[1735673814679,0.2617676,703.31,702.1,0.2848597]
[1735673814879,0.26176756,703.3,702.1,0.2848597]
[1735673815081,0.26176756,703.29,702.1,0.2848597]
[1735673815276,1.48595178,703.35,702.1,0.2848597]
[1735673815277,0.26176756,703.28,702.1,0.2848597]
[1735673815475,0.26176756,703.27,702.1,0.2848597]
[1735673815672,0.26176756,703.26,702.1,0.2848597]
[1735673815878,0.26176756,703.25,702.1,0.2848597]
[1735673816078,0.26176756,703.24,702.1,0.2848597]
[1735673816277,1.48595178,703.35,702.1,0.2848597]
[1735673816479,0.26174796,703.34,702.1,0.2848597]
[1735673816979,0.26175052,703.33,702.1,0.2848597]
[1735673817180,0.26175052,703.32,702.1,0.2848597]
[1735673817381,1.48595178,703.35,702.1,0.2848597]
[1735673817382,0.26175052,703.31,702.1,0.2848597]
[1735673817580,0.26175052,703.3,702.1,0.2848597]
[1735673817780,0.26175052,703.29,702.1,0.2848597]
[1735673817975,1.48595178,703.35,702.1,0.2848597]
[1735673818779,0.26173747,703.34,702.1,0.2848597]
[1735673818980,1.48595178,703.35,702.1,0.2848597]
[1735673819181,0.26173477,703.34,702.1,0.2848597]
[1735673819479,1.48595178,703.35,702.1,0.2848597]
[1735673822279,0.26173628,703.34,702.1,0.2848597]
[1735673822482,1.48595178,703.35,702.1,0.2848597]
[1735673836396,0.26173392,703.34,702.1,0.2848597]
[1735673836601,1.48595178,703.35,702.1,0.2848597]
[1735673837403,1.06274161,703.25,702.1,0.2848597]
[1735673838306,2.54869339,703.35,702.1,0.2848597]
[1735673839703,1.06274161,703.34,702.1,0.2848597]
[1735673841906,1.06274161,703.33,702.1,0.2848597]
[1735673843910,1.06274161,703.34,702.1,0.2848597]
[1735673845212,1.06274161,703.32,702.1,0.2848597]
[1735673847507,1.06274161,703.34,702.1,0.2848597]
[1735673848608,1.06274161,703.3,702.1,0.2848597]
[1735673849313,1.48595178,703.35,702.1,0.2848597]
[1735673849314,1.06274161,703.32,702.1,0.2848597]
[1735673850214,1.06274161,703.31,702.1,0.2848597]
[1735673851311,1.48595178,703.35,702.1,0.2848597]
[1735673851312,1.06274161,703.3,702.1,0.2848597]
[1735673852414,1.06274161,703.32,702.1,0.2848597]
[1735673853611,1.48595178,703.35,702.1,0.2848597]
[1735673856415,1.06274161,703.32,702.1,0.2848597]
[1735673857620,1.06274161,703.34,702.1,0.2848597]
[1735673858815,1.48595178,703.35,702.1,0.2848597]
[1735673858816,1.06274161,703.32,702.1,0.2848597]
[1735673859620,1.48595178,703.35,702.1,0.2848597]
[1735673860724,2.54869339,703.35,702.1,0.2848597]
[1735673861524,1.06274161,703.32,702.1,0.2848597]
[1735673862621,1.06274161,703.33,702.1,0.2848597]
[1735673864026,1.06274161,703.31,702.1,0.2848597]
[1735673864925,1.06274161,703.32,702.1,0.2848597]
[1735673865822,1.06274161,703.31,702.1,0.2848597]
[1735673867022,1.06274161,703.3,702.1,0.2848597]
[1735673868028,1.48566631,703.39,702.1,0.2848597]
[1735673877432,2.54840792,703.39,702.1,0.2848597]
[1735673881541,0.26172929,703.38,702.1,0.2848597]
[1735673881939,2.54840792,703.39,702.1,0.2848597]
[1735673882142,0.26171921,703.38,702.1,0.2848597]
[1735673883344,2.54840792,703.39,702.1,0.2848597]
[1735673884247,1.06274161,703.35,702.1,0.2848597]
[1735673885143,1.48566631,703.39,702.1,0.2848597]
[1735673885144,1.06274161,703.33,702.1,0.2848597]
[1735673885946,1.06274161,703.32,702.1,0.2848597]
[1735673886949,1.48566631,703.39,702.1,0.2848597]
[1735673886950,1.06274161,703.3,702.1,0.2848597]
[1735673889450,1.48584075,703.29,702.1,0.2848597]
[1735673891452,2.54858236,703.29,702.1,0.2848597]
[1735673893653,1.06274161,703.29,702.1,0.2848597]
[1735673893853,2.16547739,704.11,702.1,0.2848597]
[1735673893854,1.06274161,703.33,702.1,0.2848597]
[1735673898359,1.06274161,703.36,702.1,0.2848597]
[1735673899958,1.06274161,703.34,702.1,0.2848597]
[1735673901161,1.06274161,703.35,702.1,0.2848597]
[1735673902161,1.06274161,703.37,702.1,0.2848597]
[1735673903270,1.06274161,703.35,702.1,0.2848597]
[1735673904158,1.48560817,703.44,702.1,0.2848597]
[1735673904159,1.06274161,703.34,702.1,0.2848597]
[1735673906166,0.26170551,703.33,702.1,0.2848597]
[1735673906360,1.06274161,703.34,702.1,0.2848597]
[1735673906767,1.06274161,703.23,702.2,1.063392]
[1735673907065,1.06274161,703.23,702.21,0.28481508]
[1735673907466,1.06274161,703.3,702.21,0.28481508]
[1735673908467,1.06274161,703.31,702.21,0.28481508]
[1735673909563,1.06274161,703.29,702.21,0.28481508]
[1735673910468,1.06274161,703.3,702.21,0.28481508]
[1735673912176,1.06274161,703.32,702.21,0.28481508]
[1735673913769,1.06274161,703.3,702.21,0.28481508]
[1735673914671,1.06274161,703.31,702.21,0.28481508]
[1735673915873,1.48539152,703.56,702.21,0.28481508]
[1735673915874,1.06274161,703.37,702.21,0.28481508]
[1735673916973,1.48539152,703.56,702.21,0.28481508]
[1735673917473,1.06274161,703.82,702.21,0.28481508]
[1735673917668,1.48534925,703.66,702.21,0.28481508]
[1735673917867,1.06274161,703.82,702.21,0.28481508]
[1735673918071,0.26160938,703.81,702.21,0.28481508]
[1735673918272,1.06274161,703.67,702.21,0.28481508]
[1735673919272,1.06274161,703.79,702.21,1.34820708]
[1735673919568,0.26157113,703.78,702.21,1.34820708]
[1735673919773,1.48516436,703.74,702.21,1.34820708]
[1735673920574,1.48516436,703.74,702.21,0.28481508]
[1735673928580,0.26156173,703.73,702.21,0.28481508]
[1735673929384,0.26155408,703.72,702.21,0.28481508]
[1735673929580,0.26155408,703.71,702.21,0.28481508]
[1735673929882,0.26155408,703.7,702.21,0.28481508]
[1735673930075,0.26155408,703.69,702.21,0.28481508]
[1735673930280,0.26155408,703.68,702.21,0.28481508]
[1735673930475,1.06274161,704.03,702.21,0.28481508]
[1735673930683,1.48483696,703.82,702.21,0.28481508]
[1735673930984,1.06274161,704.0,702.21,0.28481508]
[1735673931177,1.48472081,703.89,702.21,0.28481508]
[1735673931379,0.26152442,703.88,702.21,0.28481508]
[1735673931579,1.06274161,704.0,702.21,0.28481508]
[1735673931977,0.26151508,703.99,702.21,0.28481508]
[1735673932179,0.26151508,703.98,702.21,0.28481508]
[1735673932478,1.06274161,704.22,702.21,0.28481508]
[1735673932683,1.48457303,703.97,702.21,0.28481508]
[1735673932983,1.06274161,704.22,702.21,0.28481508]
[1735673933187,1.48461525,703.96,702.21,0.28481508]
[1735673933375,1.06274161,704.35,702.21,0.28481508]
[1735673933577,0.26146582,704.08,702.21,0.28481508]
[1735673934385,1.06274161,704.35,702.21,0.28481508]
[1735673934587,1.48452025,704.07,702.22,1.063392]
[1735673934782,0.26147003,704.06,702.22,1.063392]
[1735673935688,0.26147003,704.06,702.21,0.28481508]
[1735673940489,0.26147642,704.05,702.21,0.28481508]
[1735673940786,1.48452025,704.07,702.21,0.28481508]
[1735673940988,0.26149147,704.06,702.21,0.28481508]
[1735673941791,0.26150099,704.05,702.21,0.28481508]
[1735673941990,0.26150099,704.04,702.21,0.28481508]
[1735673942290,0.26150099,704.03,702.21,0.28481508]
[1735673942488,0.26150099,704.02,702.21,0.28481508]
[1735673942685,0.26150099,704.01,702.21,0.28481508]
[1735673942890,0.26150099,704.0,702.21,0.28481508]
[1735673943096,0.26150099,703.99,702.21,0.28481508]
[1735673943397,0.26150099,703.98,702.21,0.28481508]
[1735673943598,1.48452025,704.07,702.21,0.28481508]
[1735673943799,0.26148581,704.06,702.21,0.28481508]
[1735673944098,1.48452025,704.07,702.21,0.28481508]
[1735673944298,0.26147993,704.06,702.21,0.28481508]
[1735673946699,1.48452025,704.07,702.21,0.28481508]
[1735673946898,0.26147737,704.06,702.21,0.28481508]
[1735673950502,0.26147737,704.06,702.21,1.34820708]
[1735673951599,0.26147737,704.06,702.4,1.063392]
[1735673951900,0.26147737,704.06,702.42,0.28472993]
[1735673952701,0.26147737,704.06,702.42,1.34812193]
[1735673953803,1.06274161,704.03,702.43,1.063392]
[1735673954003,0.26147737,704.02,702.45,0.28471777]
[1735673954702,1.06274161,704.01,702.48,1.063392]
[1735673954902,0.26150651,704.0,702.48,1.063392]
[1735673955604,1.74611452,703.99,702.48,1.063392]
[1735673955799,1.74611452,703.99,702.45,0.28471777]
[1735673955800,1.06274161,703.95,702.45,0.28471777]
[1735673956004,0.26154677,703.94,702.45,0.28471777]
[1735673957206,1.06274161,703.87,702.45,0.28471777]
[1735673957403,0.261553,703.86,702.45,0.28471777]
[1735673958407,1.06274161,703.84,702.45,0.28471777]
[1735673958599,0.261553,703.83,702.45,0.28471777]
[1735673959806,0.261553,703.82,702.45,0.28471777]
[1735673960006,0.26154712,703.81,702.45,0.28471777]
[1735673960207,0.26154712,703.8,702.45,0.28471777]
[1735673960505,0.26154712,703.79,702.45,0.28471777]
[1735673960706,0.26154712,703.78,702.45,0.28471777]
[1735673960902,0.26154712,703.77,702.45,0.28471777]
[1735673961106,0.26154712,703.76,702.45,0.28471777]
[1735673961309,0.26154712,703.75,702.45,0.28471777]
[1735673961502,1.06274161,703.87,702.45,0.28471777]
[1735673961707,1.32428479,703.86,702.45,0.28471777]
[1735673961904,0.26154318,703.85,702.45,0.28471777]
[1735673962506,1.06274161,703.86,702.45,0.28471777]
[1735673962707,0.26155122,703.85,702.45,0.28471777]
[1735673962902,1.32429283,703.85,702.45,0.28471777]
[1735673963108,0.26155122,703.84,702.45,0.28471777]
[1735673963303,0.26153152,703.83,702.45,0.28471777]
[1735673963508,0.26153152,703.82,702.45,0.28471777]
[1735673963709,1.06274161,703.88,702.45,0.28471777]
[1735673964008,0.26152885,703.87,702.45,0.28471777]
[1735673964910,0.26152885,703.86,702.45,0.28471777]
[1735673965108,0.26152885,703.85,702.45,0.28471777]
[1735673965305,0.26154071,703.84,702.45,0.28471777]
[1735673965507,0.26154071,703.83,702.45,0.28471777]
[1735673965703,1.32428232,703.82,702.47,1.063392]
[1735673965910,0.26154071,703.81,702.47,1.063392]
[1735673966811,1.32428232,703.81,702.46,1.063392]
[1735673967110,0.26154071,703.8,702.46,1.063392]
[1735673967711,1.32428232,703.8,702.48,1.063392]
[1735673967909,0.26155855,703.79,702.48,1.063392]
[1735673968105,0.26155855,703.79,702.49,0.28470156]
[1735673969109,1.06274161,703.77,702.49,0.28470156]
[1735673969309,0.26155855,703.76,702.49,0.28470156]
[1735673970406,1.06274161,703.78,702.49,0.28470156]
[1735673970711,0.261555,703.77,702.49,0.28470156]
[1735673971213,0.26155671,703.76,702.49,0.28470156]
[1735673971414,0.26155671,703.75,702.49,0.28470156]
[1735673971609,1.06274161,703.78,702.49,0.28470156]
[1735673971610,0.26155671,703.74,702.49,0.28470156]
[1735673971913,0.26155671,703.73,702.49,0.28470156]
[1735673972114,0.26155671,703.72,702.49,0.28470156]
[1735673972313,0.26155671,703.71,702.49,0.28470156]
[1735673972510,0.26155671,703.7,702.49,0.28470156]
[1735673972808,0.26155671,703.69,702.49,0.28470156]
[1735673973017,0.26155671,703.68,702.49,0.28470156]
[1735673973217,0.26155931,703.67,702.49,0.28470156]
[1735673973409,0.26155931,703.66,702.49,0.28470156]
[1735673973610,0.26155931,703.65,702.49,0.28470156]
[1735673973810,0.26155931,703.64,702.49,0.28470156]
[1735673974015,1.06274161,703.77,702.49,0.28470156]
[1735673974212,0.26155921,703.76,702.49,0.28470156]
[1735673975819,0.26155417,703.75,702.49,0.28470156]
[1735673976019,0.26155417,703.74,702.49,0.28470156]
[1735673976214,0.26155417,703.73,702.49,0.28470156]
[1735673976420,0.26155417,703.72,702.49,0.28470156]
[1735673976619,0.26155417,703.71,702.49,0.28470156]
[1735673976920,1.48473137,703.77,702.49,0.28470156]
[1735673977114,0.26155948,703.76,702.49,0.28470156]
[1735673978514,0.26155487,703.75,702.49,0.28470156]
[1735673978722,0.26155487,703.74,702.49,0.28470156]
[1735673978922,1.48473137,703.77,702.49,0.28470156]
[1735673978923,0.26155487,703.73,702.49,0.28470156]
[1735673979221,1.48473137,703.77,702.49,0.28470156]
[1735673979423,0.26155435,703.76,702.49,0.28470156]
[1735673983815,0.26155816,703.75,702.49,0.28470156]
[1735673984017,0.26155816,703.74,702.49,0.28470156]
[1735673984220,0.26155816,703.73,702.49,0.28470156]
[1735673984416,1.48473137,703.77,702.49,0.28470156]
[1735673984417,0.26155816,703.72,702.49,0.28470156]
[1735673984623,0.26155816,703.71,702.49,0.28470156]
[1735673984827,0.26155952,703.7,702.49,0.28470156]
[1735673985124,0.26155952,703.69,702.49,0.28470156]
[1735673985423,0.26155952,703.68,702.49,0.28470156]
[1735673985626,0.26155952,703.67,702.49,0.28470156]
[1735673985922,0.26155952,703.66,702.49,0.28470156]
[1735673986125,1.06274161,703.75,702.49,0.28470156]
[1735673986317,0.26154898,703.74,702.49,0.28470156]
[1735673986521,1.06274161,703.7,702.53,1.063392]
[1735673986725,0.26155261,703.69,702.54,0.28468129]
[1735673987317,0.26155665,703.68,702.54,0.28468129]
[1735673987520,0.26155665,703.67,702.54,0.28468129]
[1735673987726,0.26155665,703.66,702.55,1.063392]
[1735673987922,0.26155665,703.65,702.56,0.28467319]
[1735673988224,0.26155665,703.64,702.56,0.28467319]
[1735673988427,0.26155665,703.63,702.56,0.28467319]
[1735673988722,1.06274161,703.65,702.56,1.34806519]
[1735673988918,0.26155637,703.64,702.56,1.34806519]
[1735673989721,1.06274161,703.65,702.56,1.34806519]
[1735673990030,1.48473137,703.77,702.56,1.34806519]
[1735673990031,1.06274161,703.59,702.62,1.063392]
[1735673991123,1.06274161,703.58,702.56,0.28467319]
[1735673992129,1.06274161,703.59,702.56,0.28467319]
[1735673994430,1.06274161,703.57,702.56,0.28467319]
[1735673995130,1.06274161,703.6,702.56,0.28467319]
[1735673996330,1.06274161,703.61,702.56,0.28467319]
[1735673996931,1.06274161,703.64,702.56,0.28467319]
[1735673998328,1.06274161,703.66,702.56,0.28467319]
[1735673999433,1.06274161,703.65,702.56,0.28467319]
[1735674000331,1.48485279,703.67,702.56,0.28467319]
[1735674000832,0.2615825,703.66,702.56,0.28467319]
[1735674001335,1.48485279,703.67,702.56,0.28467319]
[1735674001534,1.32432762,703.66,702.56,0.28467319]
[1735674001832,1.06274161,703.66,702.56,0.28467319]
[1735674002934,1.48485279,703.67,702.56,0.28467319]
[1735674006629,1.06274161,703.71,702.56,0.28467319]
[1735674007631,1.06274161,703.75,702.56,0.28467319]
[1735674007831,0.2615861,703.74,702.56,0.28467319]
[1735674008539,1.06274161,703.71,702.56,0.28467319]
[1735674009738,1.06274161,703.7,702.56,0.28467319]
[1735674010938,1.48491615,703.76,702.56,0.28467319]
[1735674010939,1.06274161,703.71,702.56,0.28467319]
[1735674011641,0.26159042,703.7,702.56,0.28467319]
[1735674011934,1.32433203,703.7,702.56,0.28467319]
[1735674012141,0.26159042,703.69,702.56,0.28467319]
[1735674012341,0.26159703,703.69,702.56,0.28467319]
[1735674013040,1.06274161,703.58,702.56,0.28467319]
[1735674014139,0.26162537,703.57,702.56,0.28467319]
[1735674014341,0.26163071,703.56,702.56,0.28467319]
[1735674014539,1.06274161,703.6,702.56,0.28467319]
[1735674014737,0.26162539,703.59,702.56,0.28467319]
[1735674014939,1.06274161,703.56,702.56,0.28467319]
[1735674015134,0.26162539,703.55,702.56,0.28467319]
[1735674016138,1.06274161,703.53,702.56,0.28467319]
[1735674016543,0.26164606,703.52,702.56,0.28467319]
[1735674017145,1.48532283,703.51,702.56,0.28467319]
[1735674017334,0.26164606,703.5,702.56,0.28467319]
[1735674017940,0.26164606,703.5,702.18,1.063392]
[1735674018138,1.06274161,703.44,702.16,1.063392]
[1735674018342,0.26169127,703.43,702.16,1.34822736]
[1735674019143,0.26169127,703.43,702.16,0.28483536]
[1735674020047,1.06274161,703.44,702.16,0.28483536]
[1735674020048,0.26168988,703.42,702.16,0.28483536]
[1735674020247,0.26168988,703.41,702.16,0.28483536]
[1735674020444,0.26168988,703.4,702.16,0.28483536]
[1735674020645,0.26168988,703.39,702.16,0.28483536]
[1735674020848,0.26168988,703.38,702.16,0.28483536]
[1735674021045,0.26168988,703.37,702.16,0.28483536]
[1735674021243,0.26168988,703.36,702.16,0.28483536]
[1735674021450,0.26168988,703.35,702.16,0.28483536]
[1735674021649,0.26168988,703.34,702.16,0.28483536]
[1735674021852,1.06274161,703.45,702.16,0.28483536]
[1735674022150,0.26167679,703.44,702.16,0.28483536]
[1735674022551,0.26168248,703.43,702.16,0.28483536]
[1735674022751,0.26168248,703.42,702.16,0.28483536]
[1735674022953,1.06274161,703.48,702.16,0.28483536]
[1735674023354,2.54806444,703.51,702.16,0.28483536]
[1735674024452,1.48532283,703.51,702.16,0.28483536]
[1735674027455,1.06274161,703.83,702.16,0.28483536]
[1735674027654,1.48548662,703.6,702.16,0.28483536]
[1735674027852,0.28416356,703.82,702.16,0.28483536]
[1735674028158,1.48543907,703.59,702.16,0.28483536]
[1735674028354,0.28416356,703.82,702.16,0.28483536]
[1735674028555,0.26164494,703.81,702.16,0.28483536]
[1735674028756,0.28417163,703.8,702.16,0.28483536]
[1735674028951,0.26164494,703.79,702.16,0.28483536]
[1735674029154,0.28417163,703.8,702.16,0.28483536]
[1735674029357,0.26164191,703.79,702.16,0.28483536]
[1735674029657,2.03111928,703.79,702.16,0.28483536]
[1735674029857,0.26164191,703.78,702.16,0.28483536]
[1735674034961,1.06274161,703.64,702.16,0.28483536]
[1735674035157,0.26164191,703.63,702.16,0.28483536]
[1735674035761,1.06274161,703.64,702.16,0.28483536]
[1735674035956,0.26165797,703.63,702.16,0.28483536]
[1735674036161,1.32439958,703.63,702.16,0.28483536]
[1735674036464,0.26165797,703.62,702.16,0.28483536]
[1735674038064,1.06274161,703.6,702.16,0.28483536]
[1735674038263,0.26165797,703.59,702.16,0.28483536]
[1735674039962,1.48548134,703.58,702.16,0.28483536]
[1735674040163,0.26165797,703.57,702.16,0.28483536]
[1735674041063,0.26168569,703.56,702.16,0.28483536]
[1735674041263,0.26168569,703.55,702.16,0.28483536]
[1735674041466,0.26168569,703.54,702.16,0.28483536]
[1735674041657,0.26168569,703.53,702.16,0.28483536]
[1735674041863,0.26168569,703.52,702.16,0.28483536]
[1735674042065,0.26167266,703.51,702.16,0.28483536]
[1735674042261,0.26167266,703.5,702.16,0.28483536]
[1735674042561,0.26167266,703.49,702.16,0.28483536]
[1735674042865,0.26167266,703.48,702.16,0.28483536]
[1735674043059,0.26167266,703.47,702.16,0.28483536]
[1735674043267,0.26167266,703.46,702.16,0.28483536]
[1735674043464,0.26167266,703.45,702.16,0.28483536]
[1735674043768,0.26167266,703.44,702.16,0.28483536]
[1735674044066,0.26167266,703.43,702.16,0.28483536]
[1735674044265,0.26167266,703.42,702.16,0.28483536]
[1735674044468,1.06274161,703.49,702.16,0.28483536]
[1735674044669,0.26167557,703.48,702.16,0.28483536]
[1735674044866,0.26167461,703.47,702.16,0.28483536]
[1735674045068,1.06274161,703.49,702.16,0.28483536]
[1735674045069,0.26167461,703.46,702.16,0.28483536]
[1735674045262,0.26167461,703.45,702.16,0.28483536]
[1735674045467,0.26167461,703.44,702.16,0.28483536]
[1735674045767,0.26167461,703.43,702.16,0.28483536]
[1735674045969,1.06274161,703.49,702.16,0.28483536]
[1735674046168,1.3244163,703.48,702.16,0.28483536]
[1735674046367,0.26167439,703.47,702.16,0.28483536]
[1735674046568,1.06274161,703.48,702.16,0.28483536]
[1735674046768,0.2616617,703.47,702.16,0.28483536]
[1735674047262,0.2616617,703.47,702.16,1.34822736]
[1735674047467,0.2616617,703.46,702.16,1.34822736]
[1735674047668,0.2616617,703.45,702.16,1.34822736]
[1735674047969,0.2616617,703.44,702.16,1.34822736]
[1735674048169,1.06274161,703.46,702.16,0.28483536]
[1735674048368,0.26167141,703.45,702.16,0.28483536]
[1735674048967,0.26166414,703.44,702.16,0.28483536]
[1735674049168,1.06274161,703.38,702.24,1.063392]
[1735674049564,1.06274161,703.38,702.25,0.28479886]
[1735674050168,1.06274161,703.42,702.25,1.34819086]
[1735674050969,0.26165687,703.41,702.25,1.34819086]
[1735674051169,0.26165687,703.41,702.26,1.063392]
[1735674051370,0.26165687,703.41,702.27,0.28479074]
[1735674051669,0.2616674,703.4,702.27,0.28479074]
[1735674051869,0.2616674,703.39,702.27,0.28479074]
[1735674052063,1.06274161,703.38,702.27,0.28479074]
[1735674053171,1.06274161,703.38,702.27,1.34818274]
[1735674054371,1.06274161,703.39,702.29,1.063392]
[1735674054671,1.06274161,703.39,702.3,0.28477858]
[1735674055267,1.06274161,703.43,702.33,1.063392]
[1735674055670,1.06274161,703.43,702.34,0.28476236]
[1735674056069,1.06274161,703.44,702.35,1.063392]
[1735674056269,1.06274161,703.44,702.36,0.28475425]
[1735674057272,1.06274161,703.43,702.36,1.34814625]
[1735674058166,1.06274161,703.43,702.36,0.28475425]
[1735674060476,1.06274161,703.42,702.36,0.28475425]
[1735674061974,1.48513267,703.63,702.36,0.28475425]
[1735674071684,0.26159754,703.62,702.36,0.28475425]
[1735674071882,1.48513267,703.63,702.36,0.28475425]
[1735674072084,0.26162074,703.62,702.36,0.28475425]
[1735674073985,1.32436235,703.62,702.36,0.28475425]
[1735674074185,0.26162074,703.61,702.36,0.28475425]
[1735674074581,1.06274161,703.62,702.36,0.28475425]
[1735674074782,0.26162794,703.61,702.36,0.28475425]
[1735674076286,0.26162794,703.6,702.36,0.28475425]
[1735674076586,0.26162794,703.59,702.36,0.28475425]
[1735674076887,0.26162794,703.58,702.36,0.28475425]
[1735674077182,1.48513267,703.63,702.36,0.28475425]
[1735674077487,0.26160819,703.62,702.36,0.28475425]
[1735674079781,1.48513267,703.63,702.36,0.28475425]
[1735674079987,0.26161059,703.62,702.36,0.28475425]
[1735674081188,0.26161059,703.61,702.36,0.28475425]
[1735674081388,0.26161059,703.6,702.36,0.28475425]
[1735674081682,0.26161059,703.59,702.36,0.28475425]
[1735674081889,0.26161059,703.58,702.36,0.28475425]
[1735674082089,0.26161059,703.57,702.36,0.28475425]
[1735674082387,0.26161059,703.56,702.36,0.28475425]
[1735674082587,0.26161059,703.55,702.36,0.28475425]
[1735674082788,0.26161059,703.54,702.36,0.28475425]
[1735674082985,0.26161059,703.53,702.36,0.28475425]
[1735674083291,1.06274161,703.59,702.37,1.063392]
[1735674083489,0.26159929,703.58,702.38,0.28474614]
[1735674084589,0.26159929,703.58,702.41,1.063392]
[1735674084785,0.26159929,703.57,702.42,0.28472993]
[1735674084986,0.26159929,703.56,702.42,0.28472993]
[1735674085183,1.06274161,703.62,702.42,0.28472993]
[1735674085390,0.2616091,703.61,702.42,0.28472993]
[1735674085791,1.32435071,703.61,702.42,0.28472993]
[1735674085992,0.2616091,703.6,702.42,0.28472993]
[1735674086895,0.2616091,703.6,702.43,1.063392]
[1735674087095,0.2616091,703.59,702.43,1.063392]
[1735674087288,1.06274161,703.62,702.44,0.28472182]
[1735674087794,2.54787428,703.63,702.44,0.28472182]
[1735674087986,0.26159699,703.62,702.44,0.28472182]
[1735674088688,1.48513267,703.63,702.44,0.28472182]
[1735674089491,0.26159691,703.62,702.44,0.28472182]
[1735674090996,1.06274161,703.57,702.44,0.28472182]
[1735674091896,0.26163213,703.56,702.44,0.28472182]
[1735674092396,1.06274161,703.57,702.44,0.28472182]
[1735674092897,0.26162202,703.56,702.44,0.28472182]
[1735674093099,1.06274161,703.55,702.44,0.28472182]
[1735674096794,1.06274161,703.54,702.44,0.28472182]
[1735674097297,0.26161554,703.53,702.44,0.28472182]
[1735674097902,1.06274161,703.49,702.44,0.28472182]
[1735674098895,1.06274161,703.48,702.44,0.28472182]
[1735674099904,1.06274161,703.49,702.44,0.28472182]
[1735674100100,0.26162316,703.48,702.44,0.28472182]
[1735674100295,1.06274161,703.49,702.44,0.28472182]
[1735674101001,1.06274161,703.47,702.44,0.28472182]
[1735674101996,1.06274161,703.49,702.44,0.28472182]
[1735674103302,1.06274161,703.54,702.44,0.28472182]
[1735674105806,1.06274161,703.53,702.44,0.28472182]
[1735674106605,1.48526472,703.52,702.44,0.28472182]
[1735674107308,1.06274161,703.49,702.44,0.28472182]
[1735674108406,1.48521718,703.61,702.44,0.28472182]
[1735674113103,1.06274161,703.58,702.44,0.28472182]
[1735674113908,1.06274161,703.59,702.44,0.28472182]
[1735674115106,1.06274161,703.58,702.44,0.28472182]
[1735674116413,2.54795879,703.61,702.44,0.28472182]
[1735674117215,1.06274161,703.6,702.44,0.28472182]
[1735674117413,0.26162568,703.59,702.44,0.28472182]
[1735674118213,1.06274161,703.51,702.44,0.28472182]
[1735674120517,1.06274161,703.52,702.44,0.28472182]
[1735674121517,1.06274161,703.51,702.44,0.28472182]
[1735674122919,1.06274161,703.5,702.44,0.28472182]
[1735674123815,1.48521718,703.61,702.44,0.28472182]
[1735674123816,1.06274161,703.47,702.44,0.28472182]
[1735674125320,1.06274161,703.43,702.44,0.28472182]
[1735674126319,1.06274161,703.44,702.44,0.28472182]